[Event "Titled Tuesday Blitz September 27 Late 2022"]
[White "Bacrot, Etienne"]
[Black "Timmermans, Mark"]
[WhiteFideId "605506"]
[BlackFideId "1026399"]
[WhiteElo "2666"]
[BlackElo "2460"]
[Result "1-0"]
[Round "04"]
[TimeControl "180+1"]
[Date "2022.09.27"]
[WhiteClock "0:01:16"]
[BlackClock "0:00:26"]

1. e4 {[%clk 0:03:00]}  e5 {[%clk 0:02:56]} 2. Nf3 {[%clk 0:03:00]}  Nc6 {[%clk 0:02:55]} 3. Bb5 {[%clk 0:03:00]}  f5 {[%clk 0:02:55]} 4. d3 {[%clk 0:02:59]}  fxe4 {[%clk 0:02:54]} 5. dxe4 {[%clk 0:03:00]}  Nf6 {[%clk 0:02:55]} 6. Qd3 {[%clk 0:03:01]}  d6 {[%clk 0:02:55]} 7. O-O {[%clk 0:03:00]}  Be7 {[%clk 0:02:55]} 8. Nc3 {[%clk 0:02:59]}  O-O {[%clk 0:02:54]} 9. Bxc6 {[%clk 0:02:57]}  bxc6 {[%clk 0:02:55]} 10. Qc4+ {[%clk 0:02:57]}  Kh8 {[%clk 0:02:56]} 11. Qxc6 {[%clk 0:02:57]}  Rb8 {[%clk 0:02:56]} 12. b3 {[%clk 0:02:54]}  Rb4 {[%clk 0:02:55]} 13. Nd5 {[%clk 0:02:39]}  Nxd5 {[%clk 0:02:22]} 14. exd5 {[%clk 0:02:14]}  Bb7 {[%clk 0:02:21]} 15. Qc3 {[%clk 0:02:13]}  Rb5 {[%clk 0:02:20]} 16. Qe3 {[%clk 0:02:02]}  Rxd5 {[%clk 0:01:48]} 17. c4 {[%clk 0:02:02]}  Ra5 {[%clk 0:01:44]} 18. Bd2 {[%clk 0:01:59]}  Ra6 {[%clk 0:00:58]} 19. Ng5 {[%clk 0:01:59]}  Bxg5 {[%clk 0:00:55]} 20. Qxg5 {[%clk 0:02:00]}  Qxg5 {[%clk 0:00:56]} 21. Bxg5 {[%clk 0:02:01]}  h6 {[%clk 0:00:54]} 22. Be3 {[%clk 0:01:59]}  c6 {[%clk 0:00:54]} 23. a4 {[%clk 0:01:50]}  d5 {[%clk 0:00:52]} 24. Bc5 {[%clk 0:01:50]}  Re8 {[%clk 0:00:51]} 25. a5 {[%clk 0:01:47]}  dxc4 {[%clk 0:00:43]} 26. b4 {[%clk 0:01:45]}  Bc8 {[%clk 0:00:42]} 27. Rfe1 {[%clk 0:01:44]}  Kg8 {[%clk 0:00:41]} 28. Rac1 {[%clk 0:01:43]}  Be6 {[%clk 0:00:39]} 29. Rxe5 {[%clk 0:01:42]}  Kf7 {[%clk 0:00:40]} 30. f3 {[%clk 0:01:42]}  Rd8 {[%clk 0:00:35]} 31. Rce1 {[%clk 0:01:40]}  Bd5 {[%clk 0:00:34]} 32. Re7+ {[%clk 0:01:37]}  Kg6 {[%clk 0:00:31]} 33. Rd1 {[%clk 0:01:26]}  Rb8 {[%clk 0:00:31]} 34. Rd7 {[%clk 0:01:16]}  Rb5 {[%clk 0:00:30]} 35. Rd6+ {[%clk 0:01:16]}  Be6 {[%clk 0:00:26]} 36. Rxe6+ {[%clk 0:01:16]} 1-0


[Site "https://www.chess.com"]

[Event "Titled Tuesday Blitz September 27 Late 2022"]
[White "Bluebaum, Matthias"]
[Black "Preotu, Razvan"]
[WhiteFideId "24651516"]
[BlackFideId "2613280"]
[WhiteElo "2633"]
[BlackElo "2407"]
[Result "1-0"]
[Round "04"]
[TimeControl "180+1"]
[Date "2022.09.27"]
[WhiteClock "0:00:41"]
[BlackClock "0:00:02"]

1. d4 {[%clk 0:03:00]}  Nf6 {[%clk 0:02:59]} 2. c4 {[%clk 0:03:00]}  g6 {[%clk 0:02:59]} 3. Nc3 {[%clk 0:03:01]}  d5 {[%clk 0:02:59]} 4. cxd5 {[%clk 0:03:02]}  Nxd5 {[%clk 0:02:59]} 5. e4 {[%clk 0:03:02]}  Nxc3 {[%clk 0:02:59]} 6. bxc3 {[%clk 0:03:03]}  Bg7 {[%clk 0:02:59]} 7. Nf3 {[%clk 0:03:04]}  c5 {[%clk 0:02:59]} 8. Bb5+ {[%clk 0:03:05]}  Nc6 {[%clk 0:02:59]} 9. O-O {[%clk 0:03:05]}  O-O {[%clk 0:02:52]} 10. Bxc6 {[%clk 0:03:05]}  bxc6 {[%clk 0:02:52]} 11. Qc2 {[%clk 0:03:06]}  cxd4 {[%clk 0:02:46]} 12. cxd4 {[%clk 0:03:07]}  Bg4 {[%clk 0:02:46]} 13. Ne5 {[%clk 0:03:07]}  Qxd4 {[%clk 0:02:46]} 14. Bb2 {[%clk 0:03:08]}  Qb6 {[%clk 0:02:45]} 15. Rab1 {[%clk 0:03:09]}  Bxe5 {[%clk 0:02:43]} 16. Bxe5 {[%clk 0:03:10]}  Qa5 {[%clk 0:02:43]} 17. Bc3 {[%clk 0:03:10]}  Qc5 {[%clk 0:02:42]} 18. Qb2 {[%clk 0:03:11]}  a5 {[%clk 0:02:39]} 19. Bd4 {[%clk 0:03:11]}  Qd6 {[%clk 0:02:35]} 20. Qc3 {[%clk 0:03:11]}  Be2 {[%clk 0:02:23]} 21. Rfe1 {[%clk 0:03:11]}  Bb5 {[%clk 0:02:23]} 22. a4 {[%clk 0:03:12]}  Bxa4 {[%clk 0:02:21]} 23. Bh8 {[%clk 0:03:12]}  f6 {[%clk 0:02:18]} 24. e5 {[%clk 0:03:13]}  fxe5 {[%clk 0:00:52]} 25. Bxe5 {[%clk 0:03:14]}  Qd5 {[%clk 0:00:53]} 26. Qg3 {[%clk 0:02:56]}  Rf7 {[%clk 0:00:40]} 27. Ba1 {[%clk 0:02:53]}  c5 {[%clk 0:00:26]} 28. h4 {[%clk 0:02:31]}  Bc6 {[%clk 0:00:25]} 29. Re5 {[%clk 0:02:23]}  Qd6 {[%clk 0:00:22]} 30. h5 {[%clk 0:02:12]}  Raf8 {[%clk 0:00:22]} 31. hxg6 {[%clk 0:02:11]}  hxg6 {[%clk 0:00:20]} 32. Rh5 {[%clk 0:02:01]}  Rh7 {[%clk 0:00:19]} 33. Rxh7 {[%clk 0:01:58]}  Kxh7 {[%clk 0:00:20]} 34. Qh4+ {[%clk 0:01:58]}  Kg8 {[%clk 0:00:20]} 35. Re1 {[%clk 0:01:55]}  Kf7 {[%clk 0:00:19]} 36. Be5 {[%clk 0:01:47]}  Qd5 {[%clk 0:00:18]} 37. f3 {[%clk 0:01:47]}  Ke8 {[%clk 0:00:06]} 38. Bf6 {[%clk 0:01:36]}  Rf7 {[%clk 0:00:07]} 39. Qh8+ {[%clk 0:01:14]}  Kd7 {[%clk 0:00:07]} 40. Bc3 {[%clk 0:01:03]}  a4 {[%clk 0:00:07]} 41. Qb8 {[%clk 0:00:57]}  a3 {[%clk 0:00:06]} 42. Qa7+ {[%clk 0:00:57]}  Ke8 {[%clk 0:00:05]} 43. Qxa3 {[%clk 0:00:56]}  g5 {[%clk 0:00:03]} 44. Qa6 {[%clk 0:00:41]}  g4 {[%clk 0:00:02]} 45. Qc8+ {[%clk 0:00:41]} 1-0


[Site "https://www.chess.com"]

[Event "Titled Tuesday Blitz September 27 Late 2022"]
[White "Boros, Denes"]
[Black "Zhigalko, Sergei"]
[WhiteFideId "722340"]
[BlackFideId "13502956"]
[WhiteElo "2464"]
[BlackElo "2662"]
[Result "1/2-1/2"]
[Round "04"]
[TimeControl "180+1"]
[Date "2022.09.27"]
[WhiteClock "0:01:15"]
[BlackClock "0:00:33"]

1. e4 {[%clk 0:03:00]}  c5 {[%clk 0:02:59]} 2. Nf3 {[%clk 0:03:00]}  Nc6 {[%clk 0:02:58]} 3. d4 {[%clk 0:02:58]}  cxd4 {[%clk 0:02:58]} 4. Nxd4 {[%clk 0:02:59]}  Nf6 {[%clk 0:02:59]} 5. Nc3 {[%clk 0:02:59]}  e5 {[%clk 0:02:59]} 6. Ndb5 {[%clk 0:03:00]}  d6 {[%clk 0:02:59]} 7. Bg5 {[%clk 0:02:56]}  a6 {[%clk 0:03:00]} 8. Na3 {[%clk 0:02:56]}  b5 {[%clk 0:03:00]} 9. Nd5 {[%clk 0:02:56]}  Be7 {[%clk 0:03:01]} 10. Bxf6 {[%clk 0:02:56]}  Bxf6 {[%clk 0:03:01]} 11. c3 {[%clk 0:02:53]}  Bg5 {[%clk 0:03:01]} 12. Bd3 {[%clk 0:02:54]}  Ne7 {[%clk 0:03:01]} 13. Nxe7 {[%clk 0:02:49]}  Qxe7 {[%clk 0:03:02]} 14. Nc2 {[%clk 0:02:50]}  O-O {[%clk 0:03:01]} 15. O-O {[%clk 0:02:46]}  Rb8 {[%clk 0:02:55]} 16. Nb4 {[%clk 0:02:44]}  Qb7 {[%clk 0:02:48]} 17. Bc2 {[%clk 0:02:35]}  a5 {[%clk 0:02:45]} 18. Nd5 {[%clk 0:02:34]}  Be6 {[%clk 0:02:46]} 19. Qh5 {[%clk 0:02:08]}  Bxd5 {[%clk 0:02:14]} 20. exd5 {[%clk 0:02:09]}  h6 {[%clk 0:02:14]} 21. h4 {[%clk 0:02:09]}  Bd8 {[%clk 0:02:10]} 22. Rad1 {[%clk 0:01:59]}  b4 {[%clk 0:02:01]} 23. c4 {[%clk 0:01:44]}  Qe7 {[%clk 0:01:42]} 24. g3 {[%clk 0:01:43]}  Bb6 {[%clk 0:01:43]} 25. Rde1 {[%clk 0:01:34]}  Bd4 {[%clk 0:01:36]} 26. b3 {[%clk 0:01:30]}  Qd7 {[%clk 0:01:18]} 27. Bf5 {[%clk 0:01:20]}  Qa7 {[%clk 0:01:17]} 28. Bc2 {[%clk 0:01:17]}  Qd7 {[%clk 0:00:56]} 29. Bf5 {[%clk 0:01:16]}  Qa7 {[%clk 0:00:42]} 30. Bc2 {[%clk 0:01:15]}  Qd7 {[%clk 0:00:33]} 1/2-1/2


[Site "https://www.chess.com"]

[Event "Titled Tuesday Blitz September 27 Late 2022"]
[White "Danielyan, Vahe"]
[Black "Andreikin, Dmitry"]
[WhiteFideId "13304828"]
[BlackFideId "4158814"]
[WhiteElo "2421"]
[BlackElo "2736"]
[Result "1/2-1/2"]
[Round "04"]
[TimeControl "180+1"]
[Date "2022.09.27"]
[WhiteClock "0:00:15"]
[BlackClock "0:01:13"]

1. e4 {[%clk 0:03:00]}  e5 {[%clk 0:02:59]} 2. Nf3 {[%clk 0:03:00]}  Nc6 {[%clk 0:02:59]} 3. Bb5 {[%clk 0:02:59]}  Nf6 {[%clk 0:02:59]} 4. O-O {[%clk 0:02:57]}  Nxe4 {[%clk 0:02:58]} 5. d4 {[%clk 0:02:57]}  Nd6 {[%clk 0:02:58]} 6. Bxc6 {[%clk 0:02:58]}  dxc6 {[%clk 0:02:58]} 7. dxe5 {[%clk 0:02:59]}  Nf5 {[%clk 0:02:59]} 8. Qxd8+ {[%clk 0:02:58]}  Kxd8 {[%clk 0:03:00]} 9. h3 {[%clk 0:02:59]}  b6 {[%clk 0:02:58]} 10. Rd1+ {[%clk 0:02:56]}  Ke8 {[%clk 0:02:58]} 11. Nc3 {[%clk 0:02:54]}  h5 {[%clk 0:02:57]} 12. Bf4 {[%clk 0:02:52]}  Be7 {[%clk 0:02:55]} 13. a3 {[%clk 0:02:40]}  h4 {[%clk 0:02:50]} 14. Rd2 {[%clk 0:02:33]}  Rh5 {[%clk 0:02:50]} 15. Rad1 {[%clk 0:02:32]}  Be6 {[%clk 0:02:47]} 16. Ne2 {[%clk 0:02:25]}  Rd8 {[%clk 0:02:43]} 17. Rxd8+ {[%clk 0:02:24]}  Bxd8 {[%clk 0:02:44]} 18. Bc1 {[%clk 0:02:20]}  Bd5 {[%clk 0:02:36]} 19. Ne1 {[%clk 0:02:16]}  g5 {[%clk 0:02:32]} 20. Nc3 {[%clk 0:02:14]}  Be6 {[%clk 0:02:32]} 21. Nf3 {[%clk 0:02:13]}  Ng7 {[%clk 0:02:29]} 22. Ne4 {[%clk 0:02:11]}  g4 {[%clk 0:02:25]} 23. Nf6+ {[%clk 0:02:02]}  Bxf6 {[%clk 0:02:10]} 24. exf6 {[%clk 0:02:03]}  gxf3 {[%clk 0:02:10]} 25. fxg7 {[%clk 0:02:00]}  f6 {[%clk 0:02:11]} 26. Re1 {[%clk 0:01:57]}  Re5 {[%clk 0:02:10]} 27. Rxe5 {[%clk 0:01:48]}  fxe5 {[%clk 0:02:11]} 28. gxf3 {[%clk 0:01:40]}  Kf7 {[%clk 0:02:11]} 29. Kg2 {[%clk 0:01:36]}  c5 {[%clk 0:02:00]} 30. Bg5 {[%clk 0:01:33]}  Kxg7 {[%clk 0:01:59]} 31. Bxh4 {[%clk 0:01:33]}  c4 {[%clk 0:01:55]} 32. Bd8 {[%clk 0:01:25]}  c6 {[%clk 0:01:55]} 33. Bc7 {[%clk 0:01:24]}  Kf6 {[%clk 0:01:54]} 34. Kg3 {[%clk 0:01:22]}  b5 {[%clk 0:01:52]} 35. h4 {[%clk 0:01:20]}  Bf7 {[%clk 0:01:49]} 36. f4 {[%clk 0:01:18]}  e4 {[%clk 0:01:49]} 37. Kg4 {[%clk 0:00:43]}  Be6+ {[%clk 0:01:49]} 38. f5 {[%clk 0:00:30]}  Bxf5+ {[%clk 0:01:49]} 39. Kf4 {[%clk 0:00:31]}  Bg6 {[%clk 0:01:43]} 40. Be5+ {[%clk 0:00:31]}  Ke6 {[%clk 0:01:40]} 41. Bd4 {[%clk 0:00:32]}  a5 {[%clk 0:01:33]} 42. Kg5 {[%clk 0:00:32]}  Bf5 {[%clk 0:01:33]} 43. Be3 {[%clk 0:00:30]}  a4 {[%clk 0:01:27]} 44. h5 {[%clk 0:00:27]}  Ke5 {[%clk 0:01:25]} 45. c3 {[%clk 0:00:26]}  Ke6 {[%clk 0:01:25]} 46. Kh6 {[%clk 0:00:16]}  Kf7 {[%clk 0:01:23]} 47. Kg5 {[%clk 0:00:17]}  Ke6 {[%clk 0:01:23]} 48. Bd4 {[%clk 0:00:16]}  e3 {[%clk 0:01:15]} 49. Bxe3 {[%clk 0:00:17]}  Bd3 {[%clk 0:01:15]} 50. Kh6 {[%clk 0:00:14]}  Kf7 {[%clk 0:01:14]} 51. Kg5 {[%clk 0:00:14]}  Ke6 {[%clk 0:01:14]} 52. Bd4 {[%clk 0:00:15]}  Bc2 {[%clk 0:01:13]} 53. Be3 {[%clk 0:00:15]}  Bd3 {[%clk 0:01:13]} 1/2-1/2


[Site "https://www.chess.com"]

[Event "Titled Tuesday Blitz September 27 Late 2022"]
[White "Demidov, Mikhail"]
[Black "De La Colina, Nicolas"]
[WhiteFideId "4197143"]
[BlackFideId "30946921"]
[WhiteElo "2520"]
[BlackElo "2046"]
[Result "1-0"]
[Round "04"]
[TimeControl "180+1"]
[Date "2022.09.28"]
[WhiteClock "0:00:28"]
[BlackClock "0:00:02"]

1. Nf3 {[%clk 0:03:00]}  d6 {[%clk 0:02:55]} 2. d4 {[%clk 0:02:59]}  Nf6 {[%clk 0:02:54]} 3. g3 {[%clk 0:02:59]}  g6 {[%clk 0:02:53]} 4. b3 {[%clk 0:02:59]}  Bg7 {[%clk 0:02:53]} 5. Bb2 {[%clk 0:02:58]}  O-O {[%clk 0:02:45]} 6. Bg2 {[%clk 0:02:58]}  c5 {[%clk 0:02:44]} 7. O-O {[%clk 0:02:57]}  Nc6 {[%clk 0:02:40]} 8. c4 {[%clk 0:02:56]}  Bd7 {[%clk 0:02:35]} 9. d5 {[%clk 0:02:49]}  Na5 {[%clk 0:02:26]} 10. Nbd2 {[%clk 0:02:45]}  b5 {[%clk 0:02:12]} 11. Qc2 {[%clk 0:02:44]}  Rb8 {[%clk 0:02:05]} 12. Rab1 {[%clk 0:02:44]}  e6 {[%clk 0:01:37]} 13. dxe6 {[%clk 0:02:38]}  Bxe6 {[%clk 0:01:38]} 14. cxb5 {[%clk 0:02:36]}  Rxb5 {[%clk 0:01:39]} 15. Rfd1 {[%clk 0:02:32]}  Qe7 {[%clk 0:01:31]} 16. e4 {[%clk 0:02:27]}  Rfb8 {[%clk 0:01:14]} 17. Bc3 {[%clk 0:02:19]}  Nc6 {[%clk 0:01:11]} 18. Re1 {[%clk 0:02:12]}  Nd7 {[%clk 0:01:03]} 19. Bxg7 {[%clk 0:02:08]}  Kxg7 {[%clk 0:01:04]} 20. Nc4 {[%clk 0:02:05]}  Bxc4 {[%clk 0:00:59]} 21. Qxc4 {[%clk 0:02:03]}  Nde5 {[%clk 0:00:56]} 22. Nxe5 {[%clk 0:02:02]}  Nxe5 {[%clk 0:00:57]} 23. Qc3 {[%clk 0:02:01]}  Qf6 {[%clk 0:00:50]} 24. Rbd1 {[%clk 0:02:00]}  R5b6 {[%clk 0:00:44]} 25. f4 {[%clk 0:01:57]}  Ng4 {[%clk 0:00:43]} 26. e5 {[%clk 0:01:55]}  dxe5 {[%clk 0:00:42]} 27. fxe5 {[%clk 0:01:47]}  Qf2+ {[%clk 0:00:32]} 28. Kh1 {[%clk 0:01:46]}  Re6 {[%clk 0:00:33]} 29. h3 {[%clk 0:01:34]}  Nh6 {[%clk 0:00:23]} 30. g4 {[%clk 0:01:33]}  Kg8 {[%clk 0:00:15]} 31. Bd5 {[%clk 0:01:11]}  Re7 {[%clk 0:00:11]} 32. e6 {[%clk 0:01:10]}  f5 {[%clk 0:00:06]} 33. g5 {[%clk 0:01:07]}  Ng4 {[%clk 0:00:02]} 34. hxg4 {[%clk 0:01:05]}  Qh4+ {[%clk 0:00:02]} 35. Kg1 {[%clk 0:01:05]}  Qxg4+ {[%clk 0:00:03]} 36. Bg2 {[%clk 0:01:03]}  Qxg5 {[%clk 0:00:02]} 37. Rd7 {[%clk 0:01:03]}  Rbe8 {[%clk 0:00:02]} 38. Rxe7 {[%clk 0:01:00]}  Qxe7 {[%clk 0:00:03]} 39. Qe5 {[%clk 0:00:58]}  Rd8 {[%clk 0:00:02]} 40. Qe3 {[%clk 0:00:46]}  Rd4 {[%clk 0:00:02]} 41. b4 {[%clk 0:00:37]}  h5 {[%clk 0:00:01]} 42. bxc5 {[%clk 0:00:36]}  Rc4 {[%clk 0:00:02]} 43. c6 {[%clk 0:00:36]}  Rc2 {[%clk 0:00:02]} 44. Rc1 {[%clk 0:00:29]}  Rxc1+ {[%clk 0:00:01]} 45. Qxc1 {[%clk 0:00:30]}  Qd6 {[%clk 0:00:01]} 46. c7 {[%clk 0:00:30]}  Qd4+ {[%clk 0:00:02]} 47. Kf1 {[%clk 0:00:29]}  Qf4+ {[%clk 0:00:02]} 48. Qxf4 {[%clk 0:00:28]} 1-0


[Site "https://www.chess.com"]

[Event "Titled Tuesday Blitz September 27 Late 2022"]
[White "Gabrielian, Artur"]
[Black "Yoo, Christopher Woojin"]
[WhiteFideId "4131002"]
[BlackFideId "30909694"]
[WhiteElo "2467"]
[BlackElo "2105"]
[Result "1-0"]
[Round "04"]
[TimeControl "180+1"]
[Date "2022.09.27"]
[WhiteClock "0:00:34"]
[BlackClock "0:00:01"]

1. e4 {[%clk 0:03:00]}  c5 {[%clk 0:02:58]} 2. Nf3 {[%clk 0:03:00]}  e6 {[%clk 0:02:55]} 3. d4 {[%clk 0:03:00]}  cxd4 {[%clk 0:02:55]} 4. Nxd4 {[%clk 0:03:00]}  Nc6 {[%clk 0:02:55]} 5. Nc3 {[%clk 0:03:00]}  Nf6 {[%clk 0:02:52]} 6. Be2 {[%clk 0:02:59]}  d6 {[%clk 0:02:41]} 7. O-O {[%clk 0:02:54]}  Be7 {[%clk 0:02:41]} 8. Be3 {[%clk 0:02:52]}  O-O {[%clk 0:02:40]} 9. f4 {[%clk 0:02:52]}  Bd7 {[%clk 0:02:39]} 10. Nb3 {[%clk 0:02:51]}  a6 {[%clk 0:02:22]} 11. a4 {[%clk 0:02:42]}  Na5 {[%clk 0:01:21]} 12. e5 {[%clk 0:02:32]}  Ne8 {[%clk 0:01:19]} 13. Nxa5 {[%clk 0:02:31]}  Qxa5 {[%clk 0:01:16]} 14. Ne4 {[%clk 0:02:31]}  Qc7 {[%clk 0:01:03]} 15. Bd4 {[%clk 0:02:27]}  Bc6 {[%clk 0:00:59]} 16. Bd3 {[%clk 0:02:23]}  Bxe4 {[%clk 0:00:51]} 17. Bxe4 {[%clk 0:02:23]}  dxe5 {[%clk 0:00:51]} 18. fxe5 {[%clk 0:02:21]}  Bc5 {[%clk 0:00:47]} 19. Kh1 {[%clk 0:02:11]}  Bxd4 {[%clk 0:00:44]} 20. Qxd4 {[%clk 0:02:10]}  Rd8 {[%clk 0:00:44]} 21. Qe3 {[%clk 0:02:09]}  g6 {[%clk 0:00:43]} 22. Bf3 {[%clk 0:02:01]}  Ng7 {[%clk 0:00:42]} 23. g4 {[%clk 0:02:00]}  Rd7 {[%clk 0:00:35]} 24. c3 {[%clk 0:01:47]}  Rfd8 {[%clk 0:00:35]} 25. Rad1 {[%clk 0:01:47]}  Rxd1 {[%clk 0:00:34]} 26. Rxd1 {[%clk 0:01:46]}  Rxd1+ {[%clk 0:00:34]} 27. Bxd1 {[%clk 0:01:47]}  Qc4 {[%clk 0:00:23]} 28. Kg1 {[%clk 0:01:39]}  Ne8 {[%clk 0:00:19]} 29. Qd4 {[%clk 0:01:24]}  Qc7 {[%clk 0:00:19]} 30. b4 {[%clk 0:01:17]}  Qe7 {[%clk 0:00:17]} 31. Bf3 {[%clk 0:01:14]}  Kg7 {[%clk 0:00:15]} 32. a5 {[%clk 0:01:12]}  Nc7 {[%clk 0:00:09]} 33. Qd6 {[%clk 0:01:07]}  Kf8 {[%clk 0:00:04]} 34. Bxb7 {[%clk 0:00:54]}  Nb5 {[%clk 0:00:02]} 35. Qxe7+ {[%clk 0:00:52]}  Kxe7 {[%clk 0:00:03]} 36. Bxa6 {[%clk 0:00:52]}  Nxc3 {[%clk 0:00:03]} 37. Bc4 {[%clk 0:00:46]}  Kd7 {[%clk 0:00:01]} 38. Kf2 {[%clk 0:00:43]}  Kc6 {[%clk 0:00:01]} 39. Ke3 {[%clk 0:00:41]}  g5 {[%clk 0:00:01]} 40. Kd4 {[%clk 0:00:39]}  Nb5+ {[%clk 0:00:01]} 41. Bxb5+ {[%clk 0:00:35]}  Kxb5 {[%clk 0:00:02]} 42. h3 {[%clk 0:00:34]}  h6 {[%clk 0:00:01]} 43. Kc3 {[%clk 0:00:34]} 1-0


[Site "https://www.chess.com"]

[Event "Titled Tuesday Blitz September 27 Late 2022"]
[White "Gines Esteo, Pedro Antonio"]
[Black "Ballester Llagaria, Luis Eduardo"]
[WhiteFideId "32080190"]
[BlackFideId "2297620"]
[WhiteElo "2293"]
[BlackElo "2344"]
[Result "1-0"]
[Round "04"]
[TimeControl "180+1"]
[Date "2022.09.28"]
[WhiteClock "0:00:17"]
[BlackClock "0:00:05"]

1. Nf3 {[%clk 0:02:49]}  d5 {[%clk 0:02:59]} 2. g3 {[%clk 0:02:48]}  Bg4 {[%clk 0:02:58]} 3. Bg2 {[%clk 0:02:48]}  Nd7 {[%clk 0:02:58]} 4. d4 {[%clk 0:02:47]}  c6 {[%clk 0:02:57]} 5. O-O {[%clk 0:02:47]}  Ngf6 {[%clk 0:02:56]} 6. c4 {[%clk 0:02:47]}  e6 {[%clk 0:02:56]} 7. Nc3 {[%clk 0:02:44]}  Be7 {[%clk 0:02:56]} 8. cxd5 {[%clk 0:02:27]}  exd5 {[%clk 0:02:47]} 9. Ne5 {[%clk 0:02:27]}  Bf5 {[%clk 0:02:34]} 10. h4 {[%clk 0:02:01]}  h6 {[%clk 0:02:19]} 11. Nd3 {[%clk 0:01:54]}  O-O {[%clk 0:02:16]} 12. Bf4 {[%clk 0:01:52]}  Re8 {[%clk 0:02:06]} 13. a3 {[%clk 0:01:43]}  Bf8 {[%clk 0:02:02]} 14. b4 {[%clk 0:01:38]}  a6 {[%clk 0:02:01]} 15. Nc5 {[%clk 0:01:38]}  b6 {[%clk 0:01:45]} 16. Nb7 {[%clk 0:01:15]}  Qc8 {[%clk 0:01:29]} 17. Nd6 {[%clk 0:01:16]}  Bxd6 {[%clk 0:01:29]} 18. Bxd6 {[%clk 0:01:17]}  Ne4 {[%clk 0:01:22]} 19. Nxe4 {[%clk 0:01:16]}  Bxe4 {[%clk 0:01:23]} 20. f3 {[%clk 0:01:17]}  Bg6 {[%clk 0:01:17]} 21. g4 {[%clk 0:01:12]}  b5 {[%clk 0:01:04]} 22. Rc1 {[%clk 0:01:11]}  Nb6 {[%clk 0:01:04]} 23. h5 {[%clk 0:01:10]}  Bh7 {[%clk 0:01:04]} 24. Bf4 {[%clk 0:01:01]}  Nc4 {[%clk 0:01:04]} 25. Rc3 {[%clk 0:01:02]}  a5 {[%clk 0:01:02]} 26. bxa5 {[%clk 0:00:55]}  Rxa5 {[%clk 0:01:03]} 27. Bc1 {[%clk 0:00:55]}  Qe6 {[%clk 0:00:59]} 28. Re1 {[%clk 0:00:54]}  f5 {[%clk 0:00:45]} 29. gxf5 {[%clk 0:00:52]}  Bxf5 {[%clk 0:00:46]} 30. e4 {[%clk 0:00:51]}  Bh3 {[%clk 0:00:45]} 31. Qe2 {[%clk 0:00:45]}  Bxg2 {[%clk 0:00:37]} 32. Qxg2 {[%clk 0:00:46]}  Qf6 {[%clk 0:00:34]} 33. Rd3 {[%clk 0:00:41]}  Ra7 {[%clk 0:00:32]} 34. Qg4 {[%clk 0:00:32]}  Rae7 {[%clk 0:00:31]} 35. e5 {[%clk 0:00:32]}  Qf7 {[%clk 0:00:25]} 36. f4 {[%clk 0:00:31]}  Rf8 {[%clk 0:00:26]} 37. Qh4 {[%clk 0:00:26]}  Qf5 {[%clk 0:00:21]} 38. Rg3 {[%clk 0:00:22]}  Re6 {[%clk 0:00:19]} 39. Kh1 {[%clk 0:00:19]}  Kh7 {[%clk 0:00:20]} 40. Reg1 {[%clk 0:00:20]}  Rf7 {[%clk 0:00:20]} 41. Rg6 {[%clk 0:00:19]}  Qe4+ {[%clk 0:00:14]} 42. Kh2 {[%clk 0:00:20]}  Qe2+ {[%clk 0:00:14]} 43. R1g2 {[%clk 0:00:19]}  Qf1 {[%clk 0:00:05]} 44. Rxe6 {[%clk 0:00:19]}  Qxc1 {[%clk 0:00:06]} 45. Qg4 {[%clk 0:00:14]}  Qxf4+ {[%clk 0:00:04]} 46. Qxf4 {[%clk 0:00:14]}  Rxf4 {[%clk 0:00:05]} 47. Re7 {[%clk 0:00:15]}  Rh4+ {[%clk 0:00:03]} 48. Kg1 {[%clk 0:00:16]}  Rxd4 {[%clk 0:00:04]} 49. Rexg7+ {[%clk 0:00:16]}  Kh8 {[%clk 0:00:05]} 50. Rg8+ {[%clk 0:00:17]} 1-0


[Site "https://www.chess.com"]